fUST/lending_fUST_20260601
["ID","MTS","AMOUNT","RATE_DAILY","PERIOD"]
[423712238,1780326642000,-530.19,0.00014592,2]
[423712209,1780326642000,-443.733909,0.00014221,2]
[423712196,1780326642000,-420.0,0.00014178,2]
[423712191,1780326642000,-1166.4181643,0.00013968,2]
[423712195,1780326642000,-301.0,0.00014178,2]
[423712169,1780326642000,-300.0,0.00013592,2]
[423712175,1780326642000,-244.43496196,0.00013592,2]
[423712173,1780326642000,-55.56503804,0.00013592,2]
[423712171,1780326642000,-300.0,0.00013592,2]
[423712177,1780326642000,-300.0,0.00013592,2]
[423712165,1780326642000,-637.22754099,0.00012052,2]
[423712200,1780326642000,-600.86650382,0.0001422,2]
[423712167,1780326642000,-0.55458934,0.00013592,2]
[423712179,1780326642000,-300.0,0.00013592,2]
[423712181,1780326642000,-300.0,0.00013592,2]
[423712187,1780326642000,-300.0,0.00013592,2]
[423712185,1780326642000,-300.0,0.00013592,2]
[423712193,1780326642000,-164.417583,0.00014009,2]
[423712189,1780326642000,-1680.0,0.00013939,2]
[423712183,1780326642000,-300.0,0.00013592,2]
[423712227,1780326642000,-164.417583,0.00014469,2]
[423712205,1780326642000,-259.63103036,0.00014221,2]
[423712231,1780326642000,-500.0,0.00014495,2]
[423712274,1780326642000,-500.0,0.00015014,2]
[423712277,1780326642000,-302.94,0.00015043,2]
[423712280,1780326642000,-500.0,0.00015043,2]
[423712282,1780326642000,-151.5,0.00015125,7]
[423712284,1780326642000,-151.5,0.00015125,7]
[423712285,1780326642000,-302.47922684,0.00015125,7]
[423712289,1780326642000,-151.5,0.00015125,7]
[423712291,1780326642000,-203.93324568,0.00015125,7]
[423712293,1780326642000,-500.0,0.00015149,2]
[423712294,1780326642000,-500.0,0.00015149,2]
[423712296,1780326642000,-500.0,0.00015149,2]
[423712300,1780326642000,-17.02691554,0.00015149,2]
[423712298,1780326642000,-482.97308446,0.00015149,2]
[423712302,1780326642000,-500.0,0.00015149,2]
[423712229,1780326642000,-500.0,0.00014495,2]
[423712272,1780326642000,-500.0,0.00014983,2]
[423712270,1780326642000,-617.10613775,0.00014983,2]
[423712287,1780326642000,-151.5,0.00015125,7]
[423712258,1780326642000,-500.0,0.00014983,2]
[423712232,1780326642000,-303.06421885,0.00014495,2]
[423712268,1780326642000,-500.0,0.00014983,2]
[423712240,1780326642000,-500.0,0.00014592,2]
[423712242,1780326642000,-500.0,0.00014769,2]
[423712244,1780326642000,-500.0,0.00014769,2]
[423712245,1780326642000,-356.03,0.00014866,2]
[423712247,1780326642000,-500.0,0.00014983,2]
[423712260,1780326642000,-500.0,0.00014983,2]
[423712234,1780326642000,-536.26,0.00014495,2]
[423712266,1780326642000,-500.0,0.00014983,2]
[423712249,1780326642000,-500.0,0.00014983,2]
[423712252,1780326642000,-500.0,0.00014983,2]
[423712251,1780326642000,-500.0,0.00014983,2]
[423712254,1780326642000,-566.43004855,0.00014983,2]
[423712256,1780326642000,-253.6539694,0.00014983,2]
[423712264,1780326642000,-500.0,0.00014983,2]
[423712325,1780326643000,-505.79549661,0.00015256,2]
[423712327,1780326643000,-500.0,0.00015256,2]
[423712322,1780326643000,-500.0,0.00015256,2]
[423712320,1780326643000,-500.0,0.00015256,2]
[423712318,1780326643000,-137.71885166,0.00015221,2]
[423712310,1780326643000,-501.14416348,0.00015149,2]
[423712306,1780326643000,-208.99691554,0.00015149,2]
[423712308,1780326643000,-500.0,0.00015149,2]
[423712316,1780326643000,-14.28114834,0.00015221,2]
[423712314,1780326643000,-152.0,0.0001519,2]
[423712304,1780326643000,-291.00308446,0.00015149,2]
[423712340,1780326643000,-862.27,0.00015256,2]
[423712312,1780326643000,-1091.02853,0.00015188,2]
[423712331,1780326643000,-500.0,0.00015256,2]
[423712323,1780326643000,-500.0,0.00015256,2]
[423712336,1780326643000,-500.0,0.00015256,2]
[423712333,1780326643000,-500.0,0.00015256,2]
[423712408,1780326643000,-500.0,0.00015317,2]
[423712406,1780326643000,-152.0,0.00015315,2]
[423712412,1780326643000,-244585.46302738,0.00015332,2]
[423712404,1780326643000,-1712.61439816,0.00015291,2]
[423712350,1780326643000,-556.94458798,0.00015291,2]
[423712348,1780326643000,-152.0,0.00015284,2]
[423712410,1780326643000,-380.766,0.00015331,2]
[423712344,1780326643000,-151.5,0.00015257,2]
[423712342,1780326643000,-500.0,0.00015256,2]
[423712329,1780326643000,-500.0,0.00015256,2]
[423712335,1780326643000,-500.0,0.00015256,2]
[423712338,1780326643000,-500.0,0.00015256,2]
[423712346,1780326643000,-168.57022042,0.00015257,2]
[423712448,1780326644000,-37000.00000001,0.00015332,2]
[423712446,1780326644000,-5011.871653,0.00015332,2]
[423712445,1780326644000,-577.91,0.00014221,2]
[423712707,1780326646000,-500.0,0.00014592,2]
[423712708,1780326646000,-5119.87868874,0.00015332,2]
[423712706,1780326646000,-1439.10271416,0.00015332,2]
[423712697,1780326646000,-545.63619761,0.00014221,2]
[423712699,1780326646000,-500.0,0.00014318,2]
[423712701,1780326646000,-83969.51384367,0.00015332,2]
[423713066,1780327283000,-711.62429788,0.000121,5]
[423713068,1780327325000,6909.3,0.00022526,120]
[423713084,1780327720000,63000.0,0.00022515,30]
[423713086,1780327824000,-270.21574425,0.00011641,2]
[423713116,1780327832000,-500.0,0.00013698,2]
[423713115,1780327832000,-500.0,0.00013698,2]
[423713110,1780327832000,-500.0,0.00013698,2]
[423713113,1780327832000,-500.0,0.00013698,2]
[423713101,1780327832000,-1871.5491055,0.0001357,2]
[423713112,1780327832000,-500.0,0.00013698,2]
[423713111,1780327832000,-500.0,0.00013698,2]
[423713109,1780327832000,-500.0,0.00013698,2]
[423713108,1780327832000,-500.0,0.00013698,2]
[423713107,1780327832000,-500.0,0.00013698,2]
[423713105,1780327832000,-500.0,0.00013698,2]
[423713104,1780327832000,-500.0,0.00013698,2]
[423713092,1780327832000,-279.59446306,0.00011758,2]
[423713106,1780327832000,-500.0,0.00013698,2]
[423713098,1780327832000,-955.65845,0.00013229,2]
[423713099,1780327832000,-420.0,0.00013281,2]
[423713103,1780327832000,-500.0,0.00013698,2]
[423713102,1780327832000,-386.92,0.00013698,2]
[423713097,1780327832000,-197.75628972,0.00012858,2]
[423713096,1780327832000,-2799.9992345,0.00012689,2]
[423713095,1780327832000,-17103.49415715,0.000121,5]
[423713093,1780327832000,-1200.0,0.00012098,2]
[423713094,1780327832000,-300.0,0.00012099,2]
[423713091,1780327832000,-4729.78425575,0.00011641,2]
[423713118,1780327832000,-500.0,0.00013972,2]
[423713100,1780327832000,-1680.0,0.00013308,2]
[423713117,1780327832000,-955.65845,0.00013786,2]
[423713145,1780327832000,-500.0,0.0001422,2]
[423713114,1780327832000,-826.34,0.00013698,2]
[423713143,1780327832000,-168.61742672,0.0001422,2]
[423713119,1780327832000,-500.0,0.00013972,2]
[423713142,1780327832000,-500.0,0.0001422,2]
[423713137,1780327832000,-525.91736994,0.0001422,2]
[423713140,1780327832000,-500.0,0.0001422,2]
[423713141,1780327832000,-211.35,0.0001422,2]
[423713138,1780327832000,-500.0,0.0001422,2]
[423713144,1780327832000,-472.3487318,0.0001422,2]
[423713139,1780327832000,-500.0,0.0001422,2]
[423713136,1780327832000,-500.0,0.0001422,2]
[423713135,1780327832000,-500.0,0.0001422,2]
[423713134,1780327832000,-500.0,0.0001422,2]
[423713128,1780327832000,-500.0,0.00013972,2]
[423713146,1780327832000,-448.60459371,0.0001422,2]
[423713133,1780327832000,-479.0,0.0001422,2]
[423713121,1780327832000,-500.0,0.00013972,2]
[423713120,1780327832000,-500.0,0.00013972,2]
[423713122,1780327832000,-500.0,0.00013972,2]
[423713127,1780327832000,-826.34,0.00013972,2]
[423713123,1780327832000,-500.0,0.00013972,2]
[423713124,1780327832000,-326.34,0.00013972,2]
[423713125,1780327832000,-183.53,0.00013972,2]
[423713132,1780327832000,-500.0,0.0001422,2]
[423713130,1780327832000,-500.0,0.0001422,2]
[423713126,1780327832000,-500.0,0.00013972,2]
[423713129,1780327832000,-493.09,0.00013972,2]
[423713131,1780327832000,-292.2066766,0.0001422,2]
[423713242,1780327838000,-500.0,0.0001422,2]
[423713252,1780327838000,-500.0,0.00014221,2]
[423713250,1780327838000,-500.0,0.00014221,2]
[423713254,1780327838000,-500.0,0.00014221,2]
[423713263,1780327838000,-502.32750634,0.00014221,2]
[423713259,1780327838000,-500.0,0.00014221,2]
[423713258,1780327838000,-500.38990564,0.00014221,2]
[423713261,1780327838000,-500.0,0.00014221,2]
[423713248,1780327838000,-500.0,0.00014221,2]
[423713256,1780327838000,-625.86908226,0.00014221,2]
[423713240,1780327838000,-549.01036512,0.0001422,2]
[423713224,1780327838000,-84.24325564,0.00013698,2]
[423713244,1780327838000,-500.0,0.0001422,2]
[423713246,1780327838000,-212.56251823,0.00014221,2]
[423713237,1780327838000,-500.0,0.0001422,2]
[423713235,1780327838000,-500.0,0.0001422,2]
[423713233,1780327838000,-500.0,0.0001422,2]
[423713226,1780327838000,-51.39540629,0.0001422,2]
[423713222,1780327838000,-415.75674436,0.00013698,2]
[423713232,1780327838000,-500.0,0.0001422,2]
[423713228,1780327838000,-500.0,0.0001422,2]
[423713265,1780327838000,-500.0,0.00014221,2]
[423713239,1780327838000,-453.68814157,0.0001422,2]
[423713267,1780327838000,-501.44066251,0.00014221,2]
[423713230,1780327838000,-2691.7876,0.0001422,2]
[423713269,1780327838000,-500.0,0.00014221,2]
[423713272,1780327838000,-500.0,0.00014221,2]
[423713304,1780327838000,-500.0,0.00014494,2]
[423713302,1780327838000,-279.09470154,0.00014494,2]
[423713306,1780327838000,-500.0,0.00014494,2]
[423713295,1780327838000,-500.0,0.00014494,2]
[423713291,1780327838000,-955.65845,0.00014343,2]
[423713298,1780327838000,-439.69892671,0.00014494,2]
[423713293,1780327838000,-152.59,0.00014435,2]
[423713283,1780327838000,-343.3,0.00014246,2]
[423713296,1780327838000,-500.0,0.00014494,2]
[423713289,1780327838000,-500.0,0.00014246,2]
[423713300,1780327838000,-500.0,0.00014494,2]
[423713285,1780327838000,-500.0,0.00014246,2]
[423713287,1780327838000,-826.34,0.00014246,2]
[423713274,1780327838000,-500.0,0.00014221,2]
[423713271,1780327838000,-500.0,0.00014221,2]
[423713278,1780327838000,-500.0,0.00014221,2]
[423713279,1780327838000,-248.90150631,0.00014221,2]
[423713276,1780327838000,-500.0,0.00014221,2]
[423713281,1780327838000,-500.0,0.00014246,2]
[423713282,1780327838000,-500.0,0.00014246,2]
[423713284,1780327838000,-500.0,0.00014246,2]
[423713286,1780327838000,-500.0,0.00014246,2]
[423713280,1780327838000,-213.18,0.00014246,2]
[423713352,1780327839000,-500.0,0.00014494,2]
[423713354,1780327839000,-500.0,0.00014494,2]
[423713356,1780327839000,-500.0,0.00014494,2]
[423713358,1780327839000,-352.07707965,0.00014494,2]
[423713360,1780327839000,-560.52730279,0.00014494,2]
[423713351,1780327839000,-500.0,0.00014494,2]
[423713362,1780327839000,-446.66,0.00014494,2]
[423713372,1780327839000,-500.0,0.00014495,2]
[423713368,1780327839000,-500.0,0.00014495,2]
[423713364,1780327839000,-501.88424725,0.00014494,2]
[423713366,1780327839000,-456.78,0.00014494,2]
[423713374,1780327839000,-500.0,0.0001452,2]
[423713376,1780327839000,-500.0,0.0001452,2]
[423713387,1780327839000,-587.0,0.00014578,2]
[423713349,1780327839000,-626.14,0.00014494,2]
[423713370,1780327839000,-401.75077032,0.00014495,2]
[423713347,1780327839000,-500.0,0.00014494,2]
[423713311,1780327839000,-290.08892432,0.00014494,2]
[423713336,1780327839000,-519.43,0.00014494,2]
[423713315,1780327839000,-500.0,0.00014494,2]
[423713318,1780327839000,-505.14,0.00014494,2]
[423713320,1780327839000,-500.0,0.00014494,2]
[423713316,1780327839000,-500.0,0.00014494,2]
[423713307,1780327839000,-602.06,0.00014494,2]
[423713323,1780327839000,-500.0,0.00014494,2]
[423713309,1780327839000,-500.0,0.00014494,2]
[423713389,1780327839000,-240.0,0.00014639,2]
[423713324,1780327839000,-500.0,0.00014494,2]
[423713327,1780327839000,-500.0,0.00014494,2]
[423713338,1780327839000,-500.0,0.00014494,2]
[423713340,1780327839000,-314.38696392,0.00014494,2]
[423713330,1780327839000,-500.0,0.00014494,2]
[423713332,1780327839000,-500.0,0.00014494,2]
[423713345,1780327839000,-500.0,0.00014494,2]
[423713328,1780327839000,-500.0,0.00014494,2]
[423713343,1780327839000,-185.61303608,0.00014494,2]
[423713334,1780327839000,-500.0,0.00014494,2]
[423713391,1780327839000,-500.0,0.00014768,2]
[423713416,1780327839000,-500.0,0.00014768,2]
[423713378,1780327839000,-154.09,0.0001452,2]
[423713428,1780327839000,-500.0,0.00014769,2]
[423713430,1780327839000,-163.65,0.00014794,2]
[423713466,1780327839000,-352.68,0.00014794,2]
[423713469,1780327839000,-826.34,0.00014794,2]
[423713472,1780327839000,-500.0,0.00014794,2]
[423713475,1780327839000,-505.26279879,0.00014871,2]
[423713460,1780327839000,-500.0,0.00014794,2]
[423713426,1780327839000,-500.0,0.00014768,2]
[423713463,1780327839000,-500.0,0.00014794,2]
[423713481,1780327839000,-47959.87658455,0.00014882,2]
[423713485,1780327839000,-76962.2936908,0.00014882,2]
[423713499,1780327839000,-1689.72065281,0.00014882,2]
[423713488,1780327839000,-1091548.30509943,0.00014882,2]
[423713501,1780327839000,-1385.59573854,0.00014882,2]
[423713492,1780327839000,-23149.9999996,0.00014882,2]
[423713496,1780327839000,-26325.74633875,0.00014882,2]
[423713478,1780327839000,-4509.27,0.0001488,2]
[423713393,1780327839000,-500.0,0.00014768,2]
[423713424,1780327839000,-293.86,0.00014768,2]
[423713420,1780327839000,-500.0,0.00014768,2]
[423713397,1780327839000,-500.0,0.00014768,2]
[423713382,1780327839000,-500.0,0.0001452,2]
[423713380,1780327839000,-500.0,0.0001452,2]
[423713384,1780327839000,-826.34,0.0001452,2]
[423713395,1780327839000,-500.0,0.00014768,2]
[423713385,1780327839000,-500.0,0.0001452,2]
[423713399,1780327839000,-500.0,0.00014768,2]
[423713422,1780327839000,-500.0,0.00014768,2]
[423713401,1780327839000,-500.0,0.00014768,2]
[423713407,1780327839000,-500.0,0.00014768,2]
[423713405,1780327839000,-506.44,0.00014768,2]
[423713409,1780327839000,-500.0,0.00014768,2]
[423713414,1780327839000,-500.0,0.00014768,2]
[423713412,1780327839000,-500.0,0.00014768,2]
[423713411,1780327839000,-500.0,0.00014768,2]
[423713418,1780327839000,-532.04,0.00014768,2]
[423713403,1780327839000,-500.0,0.00014768,2]
[423713605,1780327840000,-1604.14,0.00014882,2]
[423713628,1780327840000,-5339.53196822,0.00014882,2]
[423713625,1780327840000,-2936.42643806,0.00014882,2]
[423713632,1780327840000,-4321.78782457,0.00014882,2]
[423713859,1780327843000,-500.0,0.00015042,2]
[423713858,1780327843000,-500.0,0.00015042,2]
[423713857,1780327843000,-500.0,0.00015042,2]
[423713856,1780327843000,-500.0,0.00015042,2]
[423713854,1780327843000,-500.0,0.00015042,2]
[423713855,1780327843000,-500.0,0.00015042,2]
[423713850,1780327843000,-152.0,0.00015016,2]
[423713853,1780327843000,-227.84,0.00015042,2]
[423713848,1780327843000,-955.65845,0.000149,2]
[423713849,1780327843000,-152.0,0.00015016,2]
[423713852,1780327843000,-500.0,0.00015042,2]
[423713851,1780327843000,-645.43242214,0.00015042,2]
[423713847,1780327843000,-20987.51749983,0.00014882,2]
[423713861,1780327843000,-500.0,0.00015068,2]
[423713870,1780327843000,-152.0,0.00015205,7]
[423713846,1780327843000,-5000.0,0.00014733,2]
[423713864,1780327843000,-214.58,0.00015068,2]
[423713863,1780327843000,-826.34,0.00015068,2]
[423713874,1780327843000,-152.0,0.0001522,7]
[423713877,1780327843000,-152.0,0.00015264,7]
[423713876,1780327843000,-152.0,0.00015264,7]
[423713875,1780327843000,-152.0,0.00015242,2]
[423713872,1780327843000,-152.0,0.00015212,7]
[423713868,1780327843000,-949.85066791,0.000152,36]
[423713873,1780327843000,-152.0,0.00015212,7]
[423713867,1780327843000,-905.79987873,0.000152,36]
[423713869,1780327843000,-152.0,0.00015205,7]
[423713866,1780327843000,-892.42440417,0.000152,36]
[423713862,1780327843000,-500.0,0.00015068,2]
[423713878,1780327843000,-152.0,0.00015264,7]
[423713865,1780327843000,-819.4966211,0.000152,36]
[423713860,1780327843000,-500.0,0.00015043,2]
[423713871,1780327843000,-152.0,0.00015212,2]
[423713905,1780327844000,-500.0,0.00015431,2]
[423713927,1780327844000,-410.55053245,0.00015533,2]
[423713922,1780327844000,-600.0,0.00015503,2]
[423713917,1780327844000,-500.0,0.00015431,2]
[423713921,1780327844000,-955.65845,0.00015457,2]
[423713916,1780327844000,-623.53674622,0.00015431,2]
[423713919,1780327844000,-505.00000006,0.00015431,2]
[423713920,1780327844000,-500.0,0.00015431,2]
[423713923,1780327844000,-673.09818135,0.00015533,2]
[423713924,1780327844000,-356.04736128,0.00015533,2]
[423713949,1780327844000,-500.0,0.00015864,2]
[423713925,1780327844000,-157.00011155,0.00015533,2]
[423713918,1780327844000,-500.0,0.00015431,2]
[423713914,1780327844000,-490.0,0.00015431,2]
[423713930,1780327844000,-302.44940979,0.00015533,2]
[423713934,1780327844000,-500.0,0.0001559,2]
[423713929,1780327844000,-738.99095841,0.00015533,2]
[423713928,1780327844000,-1196.61898908,0.00015533,2]
[423713935,1780327844000,-500.0,0.0001559,2]
[423713933,1780327844000,-406.50435876,0.00015533,2]
[423713931,1780327844000,-1867.84745326,0.00015533,2]
[423713936,1780327844000,-500.0,0.0001559,2]
[423713932,1780327844000,-282.60020079,0.00015533,2]
[423713942,1780327844000,-241.16107025,0.00015699,7]
[423713946,1780327844000,-500.0,0.00015705,2]
[423713943,1780327844000,-500.0,0.00015705,2]
[423713945,1780327844000,-500.0,0.00015705,2]
[423713944,1780327844000,-500.0,0.00015705,2]
[423713908,1780327844000,-500.0,0.00015431,2]
[423713926,1780327844000,-373.94343409,0.00015533,2]
[423713913,1780327844000,-500.0,0.00015431,2]
[423713888,1780327844000,-500.0,0.00015316,2]
[423713907,1780327844000,-500.0,0.00015431,2]
[423713882,1780327844000,-211.7676018,0.00015308,2]
[423713883,1780327844000,-10360.3129927,0.00015308,2]
[423713880,1780327844000,-152.0,0.00015272,7]
[423713879,1780327844000,-152.0,0.00015272,7]
[423713885,1780327844000,-50148.9760419,0.00015308,2]
[423713881,1780327844000,-152.0,0.0001528,7]
[423713884,1780327844000,-988.248808,0.00015308,2]
[423713886,1780327844000,-500.0,0.00015316,2]
[423713896,1780327844000,-882.9083183,0.00015391,7]
[423713894,1780327844000,-826.34,0.00015342,2]
[423713895,1780327844000,-220.72707957,0.00015391,7]
[423713897,1780327844000,-312.83228837,0.00015391,7]
[423713887,1780327844000,-500.0,0.00015316,2]
[423713898,1780327844000,-290.37131531,0.00015391,7]
[423713899,1780327844000,-1686.58866873,0.00015391,7]
[423713890,1780327844000,-500.0,0.00015317,2]
[423713892,1780327844000,-500.0,0.00015342,2]
[423713891,1780327844000,-164.05576265,0.00015332,2]
[423713889,1780327844000,-244.85244127,0.00015316,2]
[423713893,1780327844000,-500.0,0.00015342,2]
[423713900,1780327844000,-422.04519756,0.00015391,7]
[423713902,1780327844000,-189.8702946,0.00015431,2]
[423713903,1780327844000,-500.0,0.00015431,2]
[423713901,1780327844000,-500.0,0.00015431,2]
[423713910,1780327844000,-500.0,0.00015431,2]
[423713904,1780327844000,-500.0,0.00015431,2]
[423713912,1780327844000,-500.0,0.00015431,2]
[423713909,1780327844000,-500.0,0.00015431,2]
[423713911,1780327844000,-500.0,0.00015431,2]
[423713906,1780327844000,-500.0,0.00015431,2]
[423713948,1780327844000,-500.0,0.00015705,2]
[423713915,1780327844000,-500.0,0.00015431,2]
[423713940,1780327844000,-826.34,0.00015616,2]
[423713983,1780327844000,-826.34,0.00016438,2]
[423713979,1780327844000,-444.0,0.00016378,2]
[423713986,1780327844000,-348.35195719,0.00016602,2]
[423713978,1780327844000,-2205.0,0.00016378,2]
[423713982,1780327844000,-500.0,0.00016412,2]
[423713981,1780327844000,-2072.0,0.000164,2]
[423713985,1780327844000,-424.44711068,0.00016602,2]
[423713987,1780327844000,-354.48090532,0.00016602,2]
[423713989,1780327844000,-497.79272181,0.00016622,7]
[423713988,1780327844000,-375.16014501,0.00016602,2]
[423713990,1780327844000,-241.16107025,0.00016622,7]
[423714000,1780327844000,-636.67066603,0.00016938,2]
[423714001,1780327844000,-184.98176395,0.00016938,2]
[423713994,1780327844000,-826.34,0.00016712,2]
[423714002,1780327844000,-280.18612887,0.00016938,2]
[423713993,1780327844000,-500.0,0.00016686,2]
[423713996,1780327844000,-158.21064732,0.00016913,2]
[423713992,1780327844000,-220.66508027,0.00016683,2]
[423713995,1780327844000,-1964.2172418,0.00016799,2]
[423713991,1780327844000,-155.67,0.00016657,2]
[423713998,1780327844000,-154.63993332,0.00016938,2]
[423713999,1780327844000,-160.07206148,0.00016938,2]
[423713997,1780327844000,-559.78709785,0.00016938,2]
[423714005,1780327844000,-244.42807159,0.00016938,2]
[423714004,1780327844000,-531.72135799,0.00016938,2]
[423714003,1780327844000,-315.62235031,0.00016938,2]
[423714006,1780327844000,-236.72025151,0.00016938,2]
[423714007,1780327844000,-169.68878111,0.00016938,2]
[423713937,1780327844000,-506.23843418,0.00015591,2]
[423713984,1780327844000,-279.89354892,0.00016602,2]
[423713980,1780327844000,-310.26,0.00016378,2]
[423714008,1780327844000,-388.08476424,0.00016938,2]
[423713974,1780327844000,-345.31081186,0.000162,2]
[423713939,1780327844000,-500.0,0.00015616,2]
[423713947,1780327844000,-500.0,0.00015705,2]
[423713938,1780327844000,-500.0,0.00015616,2]
[423713941,1780327844000,-497.79272181,0.00015699,7]
[423713952,1780327844000,-500.0,0.0001589,2]
[423713951,1780327844000,-500.0,0.00015864,2]
[423713958,1780327844000,-611.10075194,0.00015979,2]
[423713962,1780327844000,-212.22355534,0.00016097,2]
[423713956,1780327844000,-500.0,0.00015979,2]
[423713961,1780327844000,-955.65845,0.00016013,2]
[423713957,1780327844000,-500.37088149,0.00015979,2]
[423713954,1780327844000,-826.34,0.0001589,2]
[423713950,1780327844000,-500.0,0.00015864,2]
[423713953,1780327844000,-500.0,0.0001589,2]
[423713960,1780327844000,-167.294,0.00016005,2]
[423713963,1780327844000,-174.1759786,0.00016097,2]
[423713973,1780327844000,-826.34,0.00016164,2]
[423713959,1780327844000,-823.0,0.00016002,2]
[423713971,1780327844000,-631.73562263,0.00016164,2]
[423713972,1780327844000,-196.4843991,0.00016164,2]
[423713970,1780327844000,-241.16107025,0.00016161,7]
[423713967,1780327844000,-345.91,0.00016138,2]
[423713968,1780327844000,-500.0,0.00016138,2]
[423713977,1780327844000,-3629.0,0.00016378,2]
[423713976,1780327844000,-1836.0,0.00016378,2]
[423713966,1780327844000,-283.59,0.00016138,2]
[423713975,1780327844000,-1797.87847337,0.00016249,2]
[423713969,1780327844000,-497.79272181,0.00016161,7]
[423713964,1780327844000,-177.24045266,0.00016097,2]
[423713955,1780327844000,-548.92,0.00015979,2]
[423713965,1780327844000,-187.5800725,0.00016097,2]
[423714048,1780327845000,-795.0,0.000183,2]
[423714052,1780327845000,-826.34,0.0001863,2]
[423714046,1780327845000,-548.80396329,0.000183,2]
[423714042,1780327845000,-826.34,0.00017808,2]
[423714050,1780327845000,-548.80396329,0.000185,2]
[423714055,1780327845000,-864.0,0.00018759,2]
[423714045,1780327845000,-160.0,0.00018201,2]
[423714047,1780327845000,-203.43934333,0.000183,2]
[423714053,1780327845000,-548.80396329,0.000187,2]
[423714043,1780327845000,-826.34,0.00018082,2]
[423714051,1780327845000,-203.43934333,0.000185,2]
[423714054,1780327845000,-203.43934333,0.000187,2]
[423714037,1780327845000,-500.0,0.00017548,2]
[423714065,1780327845000,-2205.0,0.00019378,2]
[423714044,1780327845000,-304.613,0.00018085,2]
[423714056,1780327845000,-548.80396329,0.000188,2]
[423714059,1780327845000,-548.80396329,0.00019,2]
[423714069,1780327845000,-155.36740643,0.00019682,2]
[423714060,1780327845000,-203.43934333,0.00019,2]
[423714058,1780327845000,-826.34,0.00018904,2]
[423714063,1780327845000,-2610.2639894,0.000192,7]
[423714064,1780327845000,-1613.0,0.0001928,2]
[423714067,1780327845000,-185.0,0.00019378,2]
[423714062,1780327845000,-826.34,0.00019178,2]
[423714061,1780327845000,-300.0,0.00019178,2]
[423714057,1780327845000,-203.43934333,0.000188,2]
[423714068,1780327845000,-826.34,0.00019452,2]
[423714032,1780327845000,-500.0,0.00017548,2]
[423714049,1780327845000,-826.34,0.00018356,2]
[423714038,1780327845000,-500.0,0.00017548,2]
[423714022,1780327845000,-826.34,0.0001726,2]
[423714036,1780327845000,-500.0,0.00017548,2]
[423714066,1780327845000,-444.0,0.00019378,2]
[423714012,1780327845000,-233.99231921,0.00016956,2]
[423714013,1780327845000,-500.0,0.0001696,2]
[423714015,1780327845000,-441.33016053,0.00017021,2]
[423714011,1780327845000,-233.36149068,0.00016938,2]
[423714016,1780327845000,-177.15348,0.00017021,2]
[423714014,1780327845000,-826.34,0.00016986,2]
[423714009,1780327845000,-246.35680868,0.00016938,2]
[423714010,1780327845000,-562.74021751,0.00016938,2]
[423714018,1780327845000,-720.0,0.00017053,2]
[423714026,1780327845000,-300.47813521,0.00017548,2]
[423714028,1780327845000,-500.0,0.00017548,2]
[423714027,1780327845000,-500.0,0.00017548,2]
[423714035,1780327845000,-500.0,0.00017548,2]
[423714017,1780327845000,-501.8979566,0.00017053,2]
[423714023,1780327845000,-1000.0,0.00017468,5]
[423714021,1780327845000,-241.16107026,0.00017238,7]